fUST/lending_fUST_20250130
["ID","MTS","AMOUNT","RATE_DAILY","PERIOD"]
[350937944,1738223441181,-4259.83,0.00018493,2]
[350937945,1738223441191,-1252.06,0.00018493,2]
[350937946,1738223441201,-2536.89,0.00018493,2]
[350937947,1738223441211,-500.0,0.00018493,2]
[350937948,1738223441220,-238.13962279,0.00018493,2]
[350937949,1738223441230,-937.5,0.00018493,2]
[350937950,1738223441239,-761.09,0.00018493,2]
[350937951,1738223441249,-625.71,0.00018493,2]
[350937952,1738223441260,-500.0,0.00018493,2]
[350937953,1738223441272,-1130.54,0.00018493,2]
[350937954,1738223441281,-575.46,0.00018493,2]
[350937955,1738223441292,-500.0,0.00018493,2]
[350937956,1738223441301,-666.57,0.00018493,2]
[350937958,1738223441310,-10753.13,0.00018493,2]
[350937959,1738223441320,-906.16,0.00018493,2]
[350937960,1738223441329,-629.52,0.00018493,2]
[350937962,1738223441339,-1352.79,0.00018493,2]
[350937964,1738223441348,-500.0,0.00018493,2]
[350937966,1738223441358,-701.56547963,0.000185,2]
[350937968,1738223441368,-151.0,0.000185,2]
[350937970,1738223441377,-189.93,0.000186,2]
[350937972,1738223441386,-189.93,0.000186,2]
[350937974,1738223441395,-913.17,0.0001863,2]
[350937976,1738223441404,-2368.31,0.0001863,2]
[350937978,1738223441413,-360.00962166,0.0001863,2]
[350937980,1738223441424,-686.41,0.0001863,2]
[350937982,1738223441433,-901.84,0.0001863,2]
[350937984,1738223441443,-670.07,0.0001863,2]
[350937986,1738223441452,-548.98,0.0001863,2]
[350937988,1738223441461,-500.0,0.0001863,2]
[350937990,1738223441470,-561.63,0.0001863,2]
[350937992,1738223441479,-1600.68,0.0001863,2]
[350937994,1738223441489,-4259.83,0.0001863,2]
[350937996,1738223441498,-1252.06,0.0001863,2]
[350937998,1738223441508,-2536.89,0.0001863,2]
[350938000,1738223441517,-500.0,0.0001863,2]
[350938002,1738223441527,-937.5,0.0001863,2]
[350938003,1738223441536,-761.09,0.0001863,2]
[350938005,1738223441546,-625.71,0.0001863,2]
[350938007,1738223441555,-500.0,0.0001863,2]
[350938009,1738223441564,-1130.54,0.0001863,2]
[350938011,1738223441574,-575.46,0.0001863,2]
[350938013,1738223441584,-500.0,0.0001863,2]
[350938015,1738223441594,-666.57,0.0001863,2]
[350938018,1738223441604,-10753.13,0.0001863,2]
[350938020,1738223441614,-906.16,0.0001863,2]
[350938022,1738223441623,-629.52,0.0001863,2]
[350938024,1738223441632,-1352.79,0.0001863,2]
[350938025,1738223441642,-500.0,0.0001863,2]
[350938027,1738223441651,-7439.66161752,0.0001867,2]
[350938030,1738223441662,-5000.0,0.0001867,2]
[350938032,1738223441672,-5000.0,0.0001867,2]
[350938034,1738223441682,-5000.0,0.0001867,2]
[350938036,1738223441693,-160.0,0.00018686,2]
[350938038,1738223441703,-9541.36847686,0.00018687,2]
[350938040,1738223441712,-5000.0,0.00018687,2]
[350938042,1738223441722,-5000.0,0.00018687,2]
[350938044,1738223441732,-5000.0,0.00018687,2]
[350938045,1738223441741,-5000.0,0.00018687,2]
[350938047,1738223441750,-5000.0,0.00018687,2]
[350938049,1738223441760,-5000.0,0.00018687,2]
[350938051,1738223441770,-5000.0,0.00018687,2]
[350938063,1738223441879,-3701.84775253,0.00018745,2]
[350938065,1738223441889,-913.17,0.00018767,2]
[350938067,1738223441898,-2368.31,0.00018767,2]
[350938069,1738223441908,-686.41,0.00018767,2]
[350938071,1738223441917,-901.84,0.00018767,2]
[350938073,1738223441928,-670.07,0.00018767,2]
[350938075,1738223441938,-548.98,0.00018767,2]
[350938077,1738223441947,-500.0,0.00018767,2]
[350938079,1738223441958,-561.63,0.00018767,2]
[350938081,1738223441968,-1600.68,0.00018767,2]
[350938083,1738223441977,-4259.83,0.00018767,2]
[350938085,1738223441987,-1252.06,0.00018767,2]
[350938087,1738223441996,-2536.89,0.00018767,2]
[350938089,1738223442006,-500.0,0.00018767,2]
[350938091,1738223442015,-937.5,0.00018767,2]
[350938094,1738223442025,-761.09,0.00018767,2]
[350938096,1738223442034,-625.71,0.00018767,2]
[350938097,1738223442044,-500.0,0.00018767,2]
[350938099,1738223442057,-1130.54,0.00018767,2]
[350938101,1738223442066,-575.46,0.00018767,2]
[350938103,1738223442076,-500.0,0.00018767,2]
[350938105,1738223442086,-666.57,0.00018767,2]
[350938107,1738223442095,-10753.13,0.00018767,2]
[350938109,1738223442106,-906.16,0.00018767,2]
[350938111,1738223442115,-629.52,0.00018767,2]
[350938113,1738223442124,-1352.79,0.00018767,2]
[350938115,1738223442135,-500.0,0.00018767,2]
[350938117,1738223442144,-500.0,0.000188,2]
[350938119,1738223442153,-3000.0,0.000188,2]
[350938121,1738223442162,-1500.0,0.00018829,2]
[350938123,1738223442172,-231.0,0.00018834,2]
[350938125,1738223442181,-231.0,0.00018834,2]
[350938127,1738223442191,-231.0,0.00018834,2]
[350938129,1738223442200,-231.0,0.00018834,2]
[350938131,1738223442210,-231.0,0.00018834,2]
[350938133,1738223442219,-231.0,0.00018834,2]
[350938134,1738223442228,-231.0,0.00018834,2]
[350938136,1738223442237,-231.0,0.00018834,2]
[350938138,1738223442247,-231.0,0.00018834,2]
[350938140,1738223442256,-231.0,0.00018834,2]
[350938142,1738223442265,-231.0,0.00018834,2]
[350938144,1738223442275,-231.0,0.00018834,2]
[350938146,1738223442285,-231.0,0.00018834,2]
[350938148,1738223442294,-231.0,0.00018834,2]
[350938150,1738223442303,-640.0,0.00018835,2]
[350938152,1738223442312,-640.0,0.00018835,2]
[350938154,1738223442322,-640.0,0.00018835,2]
[350938156,1738223442331,-640.0,0.00018835,2]
[350938158,1738223442341,-640.0,0.00018835,2]
[350938160,1738223442350,-640.0,0.00018835,2]
[350938162,1738223442360,-640.0,0.00018835,2]
[350938164,1738223442369,-640.0,0.00018835,2]
[350938166,1738223442379,-640.0,0.00018835,2]
[350938168,1738223442389,-640.0,0.00018835,2]
[350938170,1738223442398,-640.0,0.00018835,2]
[350938172,1738223442407,-640.0,0.00018835,2]
[350938174,1738223442416,-640.0,0.00018835,2]
[350938176,1738223442426,-640.0,0.00018835,2]
[350938178,1738223442436,-231.0,0.00018839,2]
[350938180,1738223442445,-231.0,0.00018839,2]
[350938181,1738223442454,-231.0,0.00018839,2]
[350938183,1738223442463,-231.0,0.00018839,2]
[350938185,1738223442473,-231.0,0.00018839,2]
[350938187,1738223442483,-231.0,0.00018839,2]
[350938189,1738223442492,-231.0,0.00018839,2]
[350938191,1738223442502,-231.0,0.00018839,2]
[350938193,1738223442511,-231.0,0.00018839,2]
[350938195,1738223442520,-231.0,0.00018839,2]
[350938197,1738223442531,-231.0,0.00018839,2]
[350938199,1738223442542,-231.0,0.00018839,2]
[350938201,1738223442551,-231.0,0.00018839,2]
[350938203,1738223442561,-231.0,0.00018839,2]
[350938205,1738223442570,-640.0,0.0001884,2]
[350938207,1738223442580,-640.0,0.0001884,2]
[350938209,1738223442590,-640.0,0.0001884,2]
[350938211,1738223442600,-640.0,0.0001884,2]
[350938213,1738223442610,-640.0,0.0001884,2]
[350938215,1738223442619,-640.0,0.0001884,2]
[350938217,1738223442628,-640.0,0.0001884,2]
[350938219,1738223442637,-640.0,0.0001884,2]
[350938221,1738223442647,-640.0,0.0001884,2]
[350938223,1738223442656,-640.0,0.0001884,2]
[350938225,1738223442665,-640.0,0.0001884,2]
[350938227,1738223442676,-640.0,0.0001884,2]
[350938229,1738223442685,-640.0,0.0001884,2]
[350938231,1738223442695,-640.0,0.0001884,2]
[350938233,1738223442705,-231.0,0.00018844,2]
[350938235,1738223442714,-231.0,0.00018844,2]
[350938237,1738223442724,-231.0,0.00018844,2]
[350938239,1738223442733,-231.0,0.00018844,2]
[350938241,1738223442743,-231.0,0.00018844,2]
[350938243,1738223442752,-231.0,0.00018844,2]
[350938245,1738223442762,-231.0,0.00018844,2]
[350938247,1738223442771,-231.0,0.00018844,2]
[350938249,1738223442781,-231.0,0.00018844,2]
[350938251,1738223442790,-231.0,0.00018844,2]
[350938253,1738223442799,-231.0,0.00018844,2]
[350938255,1738223442808,-231.0,0.00018844,2]
[350938257,1738223442817,-231.0,0.00018844,2]
[350938259,1738223442827,-231.0,0.00018844,2]
[350938261,1738223442836,-640.0,0.00018845,2]
[350938263,1738223442845,-640.0,0.00018845,2]
[350938265,1738223442854,-640.0,0.00018845,2]
[350938267,1738223442863,-640.0,0.00018845,2]
[350938269,1738223442873,-640.0,0.00018845,2]
[350938271,1738223442883,-640.0,0.00018845,2]
[350938273,1738223442892,-640.0,0.00018845,2]
[350938274,1738223442901,-640.0,0.00018845,2]
[350938276,1738223442911,-640.0,0.00018845,2]
[350938278,1738223442920,-640.0,0.00018845,2]
[350938280,1738223442931,-640.0,0.00018845,2]
[350938282,1738223442940,-640.0,0.00018845,2]
[350938284,1738223442949,-640.0,0.00018845,2]
[350938286,1738223442958,-640.0,0.00018845,2]
[350938288,1738223442968,-231.0,0.00018848,2]
[350938290,1738223442977,-231.0,0.00018848,2]
[350938292,1738223442986,-231.0,0.00018848,2]
[350938294,1738223442995,-231.0,0.00018848,2]
[350938296,1738223443004,-231.0,0.00018848,2]
[350938298,1738223443014,-231.0,0.00018848,2]
[350938300,1738223443023,-231.0,0.00018848,2]
[350938302,1738223443032,-231.0,0.00018848,2]
[350938304,1738223443041,-231.0,0.00018848,2]
[350938306,1738223443051,-231.0,0.00018848,2]
[350938308,1738223443064,-231.0,0.00018848,2]
[350938311,1738223443073,-231.0,0.00018848,2]
[350938314,1738223443082,-231.0,0.00018848,2]
[350938316,1738223443091,-231.0,0.00018848,2]
[350938318,1738223443101,-640.0,0.00018849,2]
[350938320,1738223443110,-640.0,0.00018849,2]
[350938321,1738223443119,-640.0,0.00018849,2]
[350938324,1738223443129,-640.0,0.00018849,2]
[350938326,1738223443138,-640.0,0.00018849,2]
[350938328,1738223443147,-640.0,0.00018849,2]
[350938330,1738223443156,-640.0,0.00018849,2]
[350938332,1738223443165,-640.0,0.00018849,2]
[350938334,1738223443175,-640.0,0.00018849,2]
[350938336,1738223443184,-640.0,0.00018849,2]
[350938338,1738223443193,-640.0,0.00018849,2]
[350938340,1738223443203,-640.0,0.00018849,2]
[350938342,1738223443212,-640.0,0.00018849,2]
[350938344,1738223443221,-640.0,0.00018849,2]
[350938346,1738223443230,-501.11811723,0.00018853,2]
[350938348,1738223443239,-4841.24793294,0.000189,2]
[350938350,1738223443248,-913.17,0.00018904,2]
[350938352,1738223443258,-2368.31,0.00018904,2]
[350938354,1738223443267,-686.41,0.00018904,2]
[350938355,1738223443276,-901.84,0.00018904,2]
[350938358,1738223443286,-670.07,0.00018904,2]
[350938360,1738223443295,-548.98,0.00018904,2]
[350938362,1738223443305,-500.0,0.00018904,2]
[350938364,1738223443315,-561.63,0.00018904,2]
[350938366,1738223443325,-1600.68,0.00018904,2]
[350938368,1738223443334,-4259.83,0.00018904,2]
[350938370,1738223443343,-1252.06,0.00018904,2]
[350938372,1738223443353,-2536.89,0.00018904,2]
[350938374,1738223443362,-500.0,0.00018904,2]
[350938376,1738223443372,-937.5,0.00018904,2]
[350938378,1738223443381,-761.09,0.00018904,2]
[350938380,1738223443391,-625.71,0.00018904,2]
[350938382,1738223443400,-500.0,0.00018904,2]
[350938384,1738223443409,-1130.54,0.00018904,2]
[350938386,1738223443419,-575.46,0.00018904,2]
[350938388,1738223443430,-500.0,0.00018904,2]
[350938390,1738223443439,-666.57,0.00018904,2]
[350938392,1738223443448,-10753.13,0.00018904,2]
[350938394,1738223443457,-906.16,0.00018904,2]
[350938396,1738223443467,-629.52,0.00018904,2]
[350938398,1738223443476,-1352.79,0.00018904,2]
[350938400,1738223443486,-500.0,0.00018904,2]
[350938402,1738223443495,-5000.0,0.00018904,7]
[350938404,1738223443504,-5000.0,0.00018904,7]
[350938406,1738223443514,-5000.0,0.00018904,7]
[350938408,1738223443523,-5000.0,0.00018904,7]
[350938410,1738223443532,-2000.00908278,0.00018904,7]
[350938412,1738223443541,-5000.0,0.00018945,2]
[350938414,1738223443552,-5000.0,0.00018945,2]
[350938416,1738223443561,-5014.78476761,0.00018962,2]
[350938418,1738223443571,-500.0,0.00018973,2]
[350938419,1738223443580,-500.0,0.00018973,2]
[350938421,1738223443589,-500.0,0.00018973,2]
[350938423,1738223443598,-500.0,0.00018973,2]
[350938425,1738223443607,-500.0,0.00018973,2]
[350938427,1738223443617,-500.0,0.00018973,2]
[350938429,1738223443626,-500.0,0.00018973,2]
[350938431,1738223443635,-285.11746724,0.00018973,2]
[350938433,1738223443644,-500.0,0.00018973,2]
[350938434,1738223443654,-500.0,0.00018973,2]
[350938435,1738223443663,-4971.29322902,0.00019,2]
[350938436,1738223443672,-30000.0,0.00019,2]
[350938437,1738223443681,-30000.0,0.00019,2]
[350938438,1738223443690,-15683.01615514,0.00019,2]
[350938439,1738223443699,-5000.0,0.00019,2]
[350938440,1738223443708,-1000.0,0.00019,19]
[350938441,1738223443717,-1862.14876773,0.00019,4]
[350938442,1738223443726,-8742.36247471,0.00019,2]
[350938445,1738223443816,-496.750002,0.00019,2]
[350938447,1738223443826,-662.88304606,0.00019,2]
[350938733,1738223446702,-975.19,0.00016438,2]
[350938735,1738223446711,-500.0,0.00016438,2]
[350938737,1738223446721,-975.19,0.00016575,2]
[350938739,1738223446730,-975.19,0.00016712,2]
[350938741,1738223446739,-975.19,0.00016849,2]
[350938743,1738223446749,-249.240005,0.00016986,2]
[350942085,1738223483333,254.692503,0.00013973,2]
[350942499,1738224211937,160.0,0.00019943,120]
[350942565,1738224632124,-171.09206405,0.00016338,2]
[350942567,1738224632134,-1213.73788503,0.00016338,2]
[350942569,1738224632143,-3000.0,0.000164,2]
[350942571,1738224632153,-3000.0,0.0001641,2]
[350942573,1738224632163,-3000.0,0.0001642,2]
[350942575,1738224632172,-3000.0,0.0001643,2]
[350942577,1738224632181,-504.82755467,0.00016438,2]
[350942579,1738224632192,-500.0,0.00016438,2]
[350942581,1738224632202,-501.1390165,0.00016438,2]
[350942583,1738224632212,-500.0,0.00016438,2]
[350942585,1738224632223,-500.0,0.00016438,2]
[350942587,1738224632233,-501.00695423,0.00016438,2]
[350942589,1738224632242,-500.0,0.00016438,2]
[350942591,1738224632252,-500.0,0.00016438,2]
[350942593,1738224632262,-500.0,0.00016438,2]
[350942595,1738224632272,-500.0,0.00016438,2]
[350942596,1738224632282,-500.0,0.00016438,2]
[350942598,1738224632296,-500.0,0.00016438,2]
[350942600,1738224632310,-500.0,0.00016438,2]
[350942602,1738224632320,-500.0,0.00016438,2]
[350942604,1738224632330,-500.0,0.00016438,2]
[350942606,1738224632340,-500.0,0.00016438,2]
[350942608,1738224632349,-500.0,0.00016438,2]
[350942610,1738224632359,-500.0,0.00016438,2]
[350942612,1738224632369,-500.0,0.00016438,2]
[350942614,1738224632378,-500.0,0.00016438,2]
[350942616,1738224632387,-500.0,0.00016438,2]
[350942618,1738224632396,-500.0,0.00016438,2]
[350942620,1738224632406,-500.0,0.00016438,2]
[350942622,1738224632414,-500.0,0.00016438,2]
[350942624,1738224632424,-677.11934906,0.00016438,2]
[350942626,1738224632433,-153.95049638,0.00016438,2]
[350942628,1738224632445,-500.0,0.00016438,2]
[350942630,1738224632454,-501.87975495,0.00016438,2]
[350942631,1738224632463,-502.91489795,0.00016438,2]
[350942633,1738224632473,-500.0,0.00016438,2]
[350942635,1738224632483,-500.0,0.00016438,2]
[350942637,1738224632492,-504.40774641,0.00016438,2]
[350942639,1738224632502,-500.0,0.00016438,2]
[350942641,1738224632512,-500.0,0.00016438,2]
[350942643,1738224632523,-500.0,0.00016438,2]
[350942645,1738224632533,-500.0,0.00016438,2]
[350942647,1738224632542,-500.0,0.00016438,2]
[350942649,1738224632551,-520.04477375,0.00016438,2]
[350942651,1738224632561,-503.62503703,0.00016438,2]
[350942653,1738224632571,-515.70621144,0.00016438,2]
[350942655,1738224632580,-500.0,0.00016438,2]
[350942657,1738224632589,-500.0,0.00016438,2]
[350942659,1738224632598,-500.0,0.00016438,2]
[350942661,1738224632608,-503.76388527,0.00016438,2]
[350942663,1738224632617,-500.0,0.00016438,2]
[350942665,1738224632626,-501.37473678,0.00016438,2]
[350942667,1738224632636,-503.58914903,0.00016438,2]
[350942669,1738224632646,-304.19026539,0.00016438,2]
[350942670,1738224632656,-501.71015634,0.00016438,2]
[350942672,1738224632665,-513.04778202,0.00016438,2]
[350942674,1738224632674,-500.0,0.00016438,2]
[350942676,1738224632683,-500.0,0.00016438,2]
[350942678,1738224632692,-500.0,0.00016438,2]
[350942680,1738224632702,-500.0,0.00016438,2]
[350942682,1738224632711,-500.0,0.00016438,2]
[350942684,1738224632720,-500.0,0.00016438,2]
[350942686,1738224632729,-500.0,0.00016438,2]
[350942688,1738224632738,-500.0,0.00016438,2]
[350942690,1738224632747,-500.0,0.00016438,2]
[350942692,1738224632756,-500.0,0.00016438,2]
[350942694,1738224632766,-500.0,0.00016438,2]
[350942696,1738224632774,-500.0,0.00016438,2]
[350942698,1738224632784,-500.0,0.00016438,2]
[350942700,1738224632794,-500.0,0.00016438,2]
[350942701,1738224632803,-500.0,0.00016438,2]
[350942703,1738224632812,-465.31440897,0.00016438,2]
[350942705,1738224632821,-533.16575531,0.00016438,2]
[350942707,1738224632830,-500.0,0.00016438,2]
[350942709,1738224632840,-500.0,0.00016438,2]
[350942711,1738224632850,-500.0,0.00016438,2]
[350942713,1738224632859,-500.0,0.00016438,2]
[350942715,1738224632867,-500.0,0.00016438,2]
[350942717,1738224632877,-500.0,0.00016438,2]
[350942719,1738224632886,-500.0,0.00016438,2]
[350942721,1738224632895,-500.0,0.00016438,2]
[350942723,1738224632905,-510.529121,0.00016438,2]
[350942725,1738224632914,-512.14704955,0.00016438,2]
[350942727,1738224632924,-500.0,0.00016438,2]
[350942729,1738224632935,-504.50632288,0.00016438,2]
[350942731,1738224632944,-500.0,0.00016438,2]
[350942733,1738224632952,-500.0,0.00016438,2]
[350942735,1738224632962,-500.0,0.00016438,2]
[350942737,1738224632971,-500.0,0.00016438,2]
[350942739,1738224632981,-500.0,0.00016438,2]
[350942741,1738224632990,-500.0,0.00016438,2]
[350942742,1738224632999,-500.0,0.00016438,2]
[350942744,1738224633008,-500.0,0.00016438,2]
[350942746,1738224633017,-500.0,0.00016438,2]
[350942748,1738224633027,-500.0,0.00016438,2]
[350942750,1738224633036,-500.0,0.00016438,2]
[350942752,1738224633046,-323.46013718,0.00016438,2]
[350942754,1738224633056,-500.0,0.00016438,2]
[350942756,1738224633066,-500.0,0.00016438,2]
[350942758,1738224633075,-500.0,0.00016438,2]
[350942760,1738224633084,-631.56,0.00016438,2]
[350942762,1738224633095,-505.519865,0.00016438,2]
[350942764,1738224633104,-500.0,0.00016438,2]
[350942766,1738224633115,-500.0,0.00016438,2]
[350942768,1738224633124,-500.0,0.00016438,2]
[350942770,1738224633134,-500.0,0.00016438,2]
[350942772,1738224633143,-500.0,0.00016438,2]
[350942774,1738224633152,-501.99572955,0.00016438,2]
[350942776,1738224633161,-500.0,0.00016438,2]
[350942777,1738224633171,-500.0,0.00016438,2]
[350942779,1738224633180,-500.0,0.00016438,2]
[350942781,1738224633189,-500.0,0.00016438,2]
[350942783,1738224633199,-500.0,0.00016438,2]
[350942785,1738224633209,-500.0,0.00016438,2]
[350942787,1738224633218,-500.0,0.00016438,2]
[350942789,1738224633228,-500.0,0.00016438,2]
[350942791,1738224633237,-887.46,0.00016438,2]
[350942793,1738224633247,-500.0,0.00016438,2]
[350942795,1738224633256,-500.0,0.00016438,2]
[350942797,1738224633266,-500.0,0.00016438,2]
[350942799,1738224633275,-638.94149389,0.00016438,2]
[350942801,1738224633285,-374.0040602,0.00016438,2]
[350942803,1738224633299,-125.9959398,0.00016438,2]
[350942805,1738224633309,-500.0,0.00016438,2]
[350942807,1738224633319,-500.0,0.00016438,2]
[350942809,1738224633329,-500.0,0.00016438,2]
[350942811,1738224633338,-500.0,0.00016438,2]
[350942813,1738224633348,-500.0,0.00016438,2]
[350942815,1738224633357,-500.0,0.00016438,2]
[350942817,1738224633367,-500.0,0.00016438,2]
[350942819,1738224633377,-500.0,0.00016438,2]
[350942821,1738224633387,-500.0,0.00016438,2]
[350942823,1738224633396,-724.4,0.00016438,2]
[350942825,1738224633406,-500.0,0.00016438,2]
[350942827,1738224633416,-500.0,0.00016438,2]
[350942829,1738224633426,-500.0,0.00016438,2]
[350942831,1738224633436,-500.0,0.00016438,2]
[350942832,1738224633449,-500.0,0.00016438,2]
[350942834,1738224633459,-500.0,0.00016438,2]
[350942836,1738224633469,-500.0,0.00016438,2]
[350942837,1738224633479,-500.0,0.00016438,2]
[350942839,1738224633489,-500.0,0.00016438,2]
[350942841,1738224633499,-500.0,0.00016438,2]
[350942843,1738224633509,-500.0,0.00016438,2]
[350942844,1738224633519,-510.80358895,0.00016438,2]
[350942846,1738224633530,-500.0,0.00016438,2]
[350942848,1738224633541,-500.0,0.00016438,2]
[350942850,1738224633551,-398.07707948,0.00016438,2]
[350942853,1738224633575,-101.92292052,0.00016438,2]
[350942855,1738224633584,-500.0,0.00016438,2]
[350942857,1738224633594,-228.17552492,0.00016438,2]
[350942859,1738224633604,-500.0,0.00016438,2]
[350942860,1738224633614,-500.0,0.00016438,2]
[350942862,1738224633623,-500.0,0.00016438,2]
[350942864,1738224633633,-500.0,0.00016438,2]
[350942866,1738224633643,-500.0,0.00016438,2]
[350942868,1738224633653,-500.0,0.00016438,2]
[350942870,1738224633663,-500.0,0.00016438,2]
[350942872,1738224633673,-500.0,0.00016438,2]
[350942884,1738224633797,-500.0,0.00016438,2]
[350942886,1738224633807,-500.0,0.00016438,2]
[350942888,1738224633818,-500.0,0.00016438,2]
[350942890,1738224633828,-1502.76,0.00016438,2]
[350942892,1738224633837,-500.0,0.00016438,2]
[350942894,1738224633847,-500.0,0.00016438,2]
[350942896,1738224633856,-500.0,0.00016438,2]
[350942898,1738224633866,-500.0,0.00016438,2]
[350942900,1738224633875,-500.0,0.00016438,2]
[350942901,1738224633885,-500.0,0.00016438,2]
[350942903,1738224633895,-500.0,0.00016438,2]
[350942905,1738224633904,-500.0,0.00016438,2]
[350942907,1738224633913,-503.86930006,0.00016438,2]
[350942909,1738224633923,-500.0,0.00016438,2]
[350942911,1738224633934,-4192.65,0.00016438,2]
[350942913,1738224633944,-500.0,0.00016438,2]
[350942915,1738224633953,-411.6901701,0.00016438,2]
[350942917,1738224633963,-500.0,0.00016438,2]
[350942918,1738224633972,-349.69815765,0.00016438,2]
[350942920,1738224633982,-500.0,0.00016438,2]
[350942922,1738224633993,-500.0,0.00016438,2]
[350942924,1738224634003,-500.0,0.00016438,2]
[350942926,1738224634012,-500.0,0.00016438,2]
[350942928,1738224634022,-500.0,0.00016438,2]
[350942930,1738224634032,-561.82,0.00016438,2]
[350942932,1738224634042,-500.0,0.00016438,2]
[350942934,1738224634052,-500.0,0.00016438,2]
[350942936,1738224634062,-500.0,0.00016438,2]
[350942937,1738224634071,-500.0,0.00016438,2]
[350942939,1738224634081,-500.0,0.00016438,2]
[350942941,1738224634091,-500.0,0.00016438,2]
[350942943,1738224634101,-500.0,0.00016438,2]
[350942945,1738224634110,-500.0,0.00016438,2]
[350942947,1738224634119,-500.0,0.00016438,2]
[350942949,1738224634128,-500.0,0.00016438,2]
[350942950,1738224634137,-500.0167824,0.00016438,2]
[350942952,1738224634146,-500.0,0.00016438,2]
[350942954,1738224634156,-500.0,0.00016438,2]
[350942956,1738224634166,-567.94976231,0.00016438,2]
[350942958,1738224634175,-501.45175561,0.00016438,2]
[350942960,1738224634185,-500.0,0.00016438,2]
[350942962,1738224634195,-500.0,0.00016438,2]
[350942964,1738224634204,-3000.0,0.0001644,2]
[350942966,1738224634214,-3000.0,0.0001645,2]
[350942968,1738224634223,-348.28239422,0.00016458,2]
[350942970,1738224634233,-500.0,0.00016458,2]
[350942972,1738224634242,-161.58675782,0.00016458,2]
[350942974,1738224634251,-500.0,0.00016458,2]
[350942976,1738224634260,-500.0,0.00016458,2]
[350942977,1738224634270,-500.0,0.00016458,2]
[350942979,1738224634280,-350.91025747,0.00016458,2]
[350942981,1738224634292,-500.0,0.00016458,2]
[350942983,1738224634301,-500.0,0.00016458,2]
[350942985,1738224634310,-500.0,0.00016458,2]
[350942987,1738224634320,-500.0,0.00016458,2]
[350942989,1738224634330,-500.0,0.00016458,2]
[350942991,1738224634340,-500.0,0.00016458,2]
[350942993,1738224634350,-500.0,0.00016458,2]
[350942995,1738224634360,-500.0,0.00016458,2]
[350942997,1738224634369,-500.0,0.00016458,2]
[350942998,1738224634379,-500.0,0.00016458,2]
[350942999,1738224634388,-535.78013783,0.00016458,2]
[350943000,1738224634398,-500.0,0.00016458,2]
[350943001,1738224634407,-500.0,0.00016458,2]
[350943002,1738224634416,-500.0,0.00016458,2]
[350943003,1738224634425,-500.0,0.00016458,2]
[350943004,1738224634435,-3000.0,0.0001646,2]
[350943005,1738224634449,-3000.0,0.0001647,2]
[350943006,1738224634459,-3000.0,0.0001648,2]
[350943007,1738224634468,-500.0,0.00016488,2]
[350943008,1738224634478,-3000.0,0.0001649,2]
[350943009,1738224634489,-3000.0,0.000165,2]
[350943010,1738224634498,-500.0,0.00016509,2]